Cogmind - Beta 9.2 @@@ ROGUE MODE // 2019.11.13 @ 09:17:11 Player: moep Result: Self-destructed Performance ------------- Evolutions (1) 500 Regions Visited (2) 400 Robots Destroyed (33) 165 Value Destroyed (631) 631 Prototype IDs (0) 0 Alien Tech Used (0) 0 Bonus (0) 0 TOTAL SCORE: 1696 Bonus ------- None Cogmind --------- Core Integrity 49/400 Matter 300/300 Energy 265/265 System Corruption 0% Temperature Cool (0) Movement Treading (160) Location -9/Materials Parts ------- > --- POWER (1) -------- Improved Ion Engine > --- PROPULSION (3) --- Light Treads Light Treads Improved Aluminum Leg > --- UTILITY (3) ------ Small Storage Unit Signal Interpreter > --- WEAPON (2) ------- Autogun Autogun > --- INVENTORY (6) ---- Light Ion Engine Improved Ion Engine Compact Wheel Light Assault Rifle Autogun Autogun Peak State ------------ > --- POWER ------------ Light Ion Engine > --- PROPULSION ------- Improved Aluminum Leg Improved Aluminum Leg Improved Aluminum Leg > --- UTILITY ---------- Small Storage Unit Signal Interpreter Light Armor Plating > --- WEAPON ----------- Heavy EM Pulse Gun Autogun > --- INVENTORY -------- Light Ion Engine Light Treads Light Treads Improved Aluminum Leg Light Assault Rifle Light Assault Rifle [Rating: 14] Favorites ----------- Power Light Ion Engine Engine Light Ion Engine Propulsion Improved Aluminum Leg Treads Light Treads Leg Improved Aluminum Leg Utility Small Storage Unit Storage Small Storage Unit Processor Signal Interpreter Protection Light Armor Plating Weapon Autogun Energy Gun Medium Laser Energy Cannon Beam Cannon Ballistic Gun Autogun Build | -11 -10 -9 ------- Run | Scr Mat Mat Slots Evolved 2 | . . 2 Power . | . . . Propulsion 1 | . . 1 Utility 1 | . . 1 Weapon . | . . . Parts Attached 30 | 6 11 13 Power 7 | 1 3 3 Engine 7 | 1 3 3 Core . | . . . Reactor . | . . . Propulsion 8 | 2 2 4 Treads 2 | . . 2 Leg 6 | 2 2 2 Wheel . | . . . Hover . | . . . Flight . | . . . Utility 4 | 1 2 1 Device . | . . . Storage 1 | 1 . . Processor 1 | . 1 . Hackware . | . . . Protection 2 | . 1 1 Artifact . | . . . Weapon 11 | 2 4 5 Energy Gun 4 | 1 1 2 Energy Cannon 1 | . 1 . Ballistic Gun 6 | 1 2 3 Ballistic Cannon . | . . . Launcher . | . . . Special Weapon . | . . . Impact Weapon . | . . . Slashing Weapon . | . . . Piercing Weapon . | . . . Special Melee Weapon . | . . . Unidentified Prototypes . | . . . Parts Lost 10 | . 1 9 Power 3 | . 1 2 Propulsion 3 | . . 3 Utility 1 | . . 1 Weapon 3 | . . 3 Highest Loss Streak 9 | . 1 9 Average Slot Usage (%) 90 | . 96 86 Engine 11 | . 12 10 Treads 5 | . . 9 Leg 22 | . 27 18 Storage 12 | . 14 11 Processor 9 | . 6 11 Protection 4 | . 6 3 Energy Gun 6 | . 12 2 Energy Cannon 2 | . 6 . Ballistic Gun 15 | . 8 19 Naked Turns . | . . . Heaviest Build 17 | 11 17 17 Greatest Support 40 | 20 26 40 Greatest Overweight (x) 3 | . . 3 Average Overweight (x) . | . . . Largest Inventory Capacity 6 | 6 6 6 Average Capacity 5 | 5 6 6 Most Carried 6 | 4 6 6 Average Carried 5 | 2 5 5 Final Capacity 6 | 6 6 6 Final Carried 6 | 4 6 6 Class Distribution -------------------- 100% | Mutant Dominant Class ---------------- Mutant | -10/Materials Mutant | -9/Materials Resources | -11 -10 -9 ----------- Run | Scr Mat Mat Matter Collected 758 | 241 144 373 Remotely . | . . . Salvage Created 1257 | . 479 778 Parts 69 | . 31 38 Haulers Intercepted . | . . . Recyclers Shooed 3 | . 1 2 Parts Field Recycled . | . . . Retrieved Matter . | . . . Parts Self-Destructed . | . . . Prevented . | . . . Kills | -11 -10 -9 ------- Run | Scr Mat Mat Combat Hostiles Destroyed 23 | . 11 12 Guns 20 | . 8 12 Cannons 2 | . 2 . AOE 1 | . 1 . Classes Destroyed 7 | . 4 3 Builder 1 | . 1 . Tunneler 1 | . . 1 Recycler 7 | . 3 4 Watcher 1 | . . 1 Swarmer 12 | . 9 3 Grunt 7 | . 2 5 Sentry 4 | . . 4 Best Kill Streak 5 | . 5 4 Combat Bots Only 4 | . 3 4 Max Kills in Single Turn 2 | . 1 2 Gunslinging 1 | . . 1 Exploded 1 | . 1 . Melee . | . . . Uniques/NPCs Destroyed . | . . . Combat | -11 -10 -9 -------- Run | Scr Mat Mat Damage Taken 1784 | . 275 1509 Core 383 | . 32 351 Absorbed by Shields . | . . . Core Remaining (%) 93 | 100 87 . Volleys Fired 73 | . 24 49 Largest 2 | . 2 2 Hottest 100 | . 100 68 Shots Fired 140 | . 48 92 Gun 124 | . 32 92 Cannon 16 | . 16 . Launcher . | . . . Special . | . . . Kinetic 97 | . 12 85 Thermal 20 | . 20 . Explosive . | . . . Electromagnetic 23 | . 16 7 Robot Hit Streak 9 | . 6 9 Robot Miss Streak 6 | . 6 2 Penetration Max . | . . . Secondary Targets 4 | . 2 2 Max Gunslinging Chain 1 | . 1 1 Shots Hit Robots 90 | . 25 65 Core Hits 44 | . 18 26 Critical Hits . | . . . Critical Kills . | . . . Critical Parts Destroyed . | . . . Melee Attacks . | . . . Impact . | . . . Slashing . | . . . Piercing . | . . . Sneak Attacks . | . . . Combat Hostiles . | . . . Follow-up Attacks . | . . . Damage Inflicted 1339 | . 473 866 Guns 1095 | . 229 866 Cannons 192 | . 192 . Explosions 52 | . 52 . Melee . | . . . Ramming . | . . . Kinetic 867 | . 63 804 Thermal 270 | . 270 . Explosive . | . . . Electromagnetic 202 | . 140 62 Impact . | . . . Slashing . | . . . Piercing . | . . . Highest Corruption . | . . . Average Corruption . | . . . Corruption Purged . | . . . Overload Shots . | . . . Overflow Damage . | . . . Projectiles . | . . . Explosions . | . . . Melee . | . . . Knockbacks . | . . . Impact . | . . . Kinetic . | . . . Secondary . | . . . Self-Inflicted Damage . | . . . Shots . | . . . Rammed . | . . . Targets Rammed . | . . . Kicked . | . . . Crushed . | . . . Highest Temperature 268 | . 268 165 Average Temperature 75 | . 95 47 Received Heat Transfer 576 | . 30 546 Siege Activations . | . . . Robots Corrupted . | . . . Combat Hostiles . | . . . Parts Fried . | . . . Impact Corruptions . | . . . Robots Melted . | . . . Combat Hostiles . | . . . Parts Melted 1 | . 1 . Heat Transferred 581 | . 581 . Parts Sabotaged . | . . . Parts Stolen . | . . . Parts Stripped . | . . . Power Chain Reactions 1 | . 1 . Missiles Intercepted . | . . . Alert | -11 -10 -9 ------- Run | Scr Mat Mat Peak Influence 330 | . 330 266 Average Influence 147 | . 152 172 Maximum Alert Level 1 | . 1 1 Low Security (%) 78 | 100 72 78 Level 1 21 | . 27 21 Level 2 . | . . . Level 3 . | . . . Level 4 . | . . . Level 5 . | . . . High Security . | . . . Max Security . | . . . Squads Dispatched 2 | . 2 . Investigation 1 | . 1 . Extermination . | . . . Reinforcement 1 | . 1 . Assault . | . . . Garrison . | . . . Intercept . | . . . Construction Impeded . | . . . Haulers Reinforced . | . . . Stealth | -11 -10 -9 --------- Run | Scr Mat Mat Distress Signals . | . . . Communications Jammed . | . . . Distress Signals . | . . . Times Spotted 42 | . 20 22 Peak Tracking Total 8 | . 6 8 Tactical Retreats 3 | . 1 2 Traps | -11 -10 -9 ------- Run | Scr Mat Mat Traps Triggered 1 | . 1 . Indirectly . | . . . Trap Hack Attempts . | . . . Triggered . | . . . Disarmed . | . . . Reprogrammed . | . . . Reused . | . . . Traps Extracted . | . . . Installed . | . . . Triggered . | . . . Machines | -11 -10 -9 ---------- Run | Scr Mat Mat Machines Disabled 1 | . 1 . Max in Single Turn 1 | . 1 . Machines Sabotaged . | . . . Garrisons Compromised . | . . . Overloaded Fab Kills . | . . . Fab Network Shutdowns . | . . . Hacking | -11 -10 -9 --------- Run | Scr Mat Mat Machines Accessed . | . . . Terminals . | . . . Fabricators . | . . . Repair Stations . | . . . Recycling Units . | . . . Scanalyzers . | . . . Garrison Access . | . . . Total Hacks . | . . . Successful . | . . . Failed . | . . . Catastrophic . | . . . Database Lockouts . | . . . Manual . | . . . Terminals . | . . . Fabricators . | . . . Repair Stations . | . . . Recycling Units . | . . . Scanalyzers . | . . . Garrison Access . | . . . Terminal Hacks . | . . . Fabricator Hacks . | . . . Repair Station Hacks . | . . . Recycling Unit Hacks . | . . . Scanalyzer . | . . . Garrison Access Hacks . | . . . Unauthorized Hacks . | . . . Terminals . | . . . Fabricators . | . . . Repair Stations . | . . . Recycling Units . | . . . Scanalyzers . | . . . Garrison Access . | . . . Data Cores Recovered . | . . . Used . | . . . Hacking Detections . | . . . Full Trace Events . | . . . Feedback Events . | . . . Feedback Blocked . | . . . Robot Schematics Acquired . | . . . Robots Built . | . . . Matter . | . . . Time . | . . . Total Robot Build Rating . | . . . Part Schematics Acquired . | . . . Parts Built . | . . . Matter . | . . . Time . | . . . Total Part Build Rating . | . . . Parts Repaired . | . . . Time . | . . . Parts Recycled . | . . . Recycled Matter . | . . . Retrieved Matter . | . . . Retrieved Components . | . . . Parts Scanalyzed . | . . . Part Schematics Acquired . | . . . Parts Damaged . | . . . Bothacking | -11 -10 -9 ------------ Run | Scr Mat Mat Used RIF Installer . | . . . Robots Hacked . | . . . Non-combat . | . . . Combat . | . . . Robot Hacks Applied . | . . . Relay Couplers Released . | . . . Robots Rewired . | . . . Allies Hacked . | . . . Hacks Repelled . | . . . Allies | -11 -10 -9 -------- Run | Scr Mat Mat Total Allies . | . . . Largest Group . | . . . Highest-Rated Group . | . . . Highest-Rated Ally . | . . . Total Orders . | . . . Ally Attacks . | . . . Total Damage . | . . . Kills . | . . . Allies Corrupted . | . . . Allies Melted . | . . . Intel | -11 -10 -9 ------- Run | Scr Mat Mat Robot Analysis Total . | . . . Derelict Logs Recovered . | . . . Drone Launches . | . . . Drone Recoveries . | . . . Exploration | -11 -10 -9 ------------- Run | Scr Mat Mat Turns Passed 1116 | 114 392 610 Spaces Moved 655 | 88 245 322 Core 10 | 5 . 5 Treads 107 | . . 107 Legs 538 | 83 245 210 Wheels . | . . . Hover . | . . . Flight . | . . . Fastest Speed 50 | 50 120 120 Average Speed 126 | 116 120 134 Slowest Speed 200 | 120 120 200 Overloaded Moves . | . . . Propulsion Burnouts . | . . . Robots Hopped . | . . . Cave-ins Triggered . | . . . Exploration Rate (%) 21 | 4 36 25 Regions Visited 2 Branch Regions . Pre-discovered Areas . | . . . Known Exits Taken 1 | . 1 . Unknown Exits Taken 1 | 1 . . Scrap Searched . | . . . Spaces Dug . | . . . Terrain Destroyed 3 | . 3 . Melee . | . . . Projectile . | . . . AOE 3 | . 3 . Actions | -11 -10 -9 --------- Run | Scr Mat Mat Total 817 | 97 298 422 Wait 33 | . 3 30 Move 653 | 87 244 322 Hop . | . . . Pick Up 13 | 4 4 5 Fast Attach 21 | 6 9 6 Attach 7 | . 1 6 Detach 3 | . 2 1 Swap 2 | . 1 1 Drop 12 | . 10 2 Fire 73 | . 24 49 Melee . | . . . Ram . | . . . Kick . | . . . Crush . | . . . Escape Stasis . | . . . Rewire . | . . . Trap . | . . . Miscellaneous . | . . . Route ------- -11/Scrapyard -10/Materials -9/Materials (discovered 1 exit: *Min) History --------- Turn | Location | Event 2 | -11/Scrapyard | Met Revision 17 25 | -11/Scrapyard | Discovered new exit (range 15) 115 | -11/Scrapyard | Entered Materials 336 | -10/Materials | Build established: Mutant 397 | -10/Materials | Discovered new exit (range 12) 467 | -10/Materials | Identified exit to Materials 507 | -10/Materials | Entered another Materials area 507 | -9/Materials | Evolved 2 slots: Propulsion x1, Utility x1 584 | -9/Materials | Discovered new exit (range 7) 615 | -9/Materials | Identified exit to Mines 839 | -9/Materials | Core integrity fell below 50% 877 | -9/Materials | Lost 9 parts (2p3n1u3w) 946 | -9/Materials | Core integrity fell below 20% 1117 | -9/Materials | Self-destructed Last Messages --------------- 01029_ T-07 Excavator destroyed. 01032_ K-01 Serf collects debris. 01037_ G-34 Mercenary destroyed. 01039_ K-01 Serf collects debris. 01041_ Acquired 35 matter. 01044_ K-01 Serf collects debris. 01044_ R-06 Scavenger inserts Com. Wheel into recycling unit. 01047_ R-06 Scavenger inserts Lgt. Treads into recycling unit. 01047_ K-01 Serf collects debris. 01048_ Recycling unit begins recycling process. 01048_ U-05 Engineer builds a Door. 01050_ R-06 Scavenger inserts Lgt. Treads into recycling unit. 01051_ K-01 Serf collects debris. 01054_ Recycling unit begins recycling process. 01067_ R-06 Scavenger collects Aluminum Leg. 01070_ K-01 Serf destroyed. 01086_ Y-45 Defender destroyed. 01093_ U-05 Engineer lays Concrete. 01098_ R-06 Scavenger collects Imp. Ion Engine. 01100_ Acquired 29 matter. Map ----- +----------------------------------------------------+ | ?????????????????????????????????????????????????? | | ?????????????????????????????????????????????????? | | ?????????????????????????????????????????????????? | | ?????????????????????????????????????????????????? | | ?????????????????????????????????????????????????? | | ?????????????????????????????????????????????????? | | ?????????????????????????????????????????????????? | | ?????????????????????????????????????????????????? | | ?????????????????????????????????????????????????? | | ?????????????????? ??????????????????????????????? | | ?????????????????? ??????????????????????????????? | | ?????????????????? ??????????????????????????????? | | ?????????????????? ??????????????????????????????? | | ?????????????????? ??????????????????????????????? | | ?????????????????? ??????????????????????????????? | | ?????#######?????? ??????????????????????????????? | | ##+?## #?????# #?????????????????????????????? | | #?????# #?????????????????????????????? | | #?????# #?????????????????????????????? | | """ #?????# #?????????????????????????????? | | # """ #?????# #?????????????????????????????? | | # """ #?????# #?#######?????????????????????? | | # ####### ### ########/####?????????? | | # ^ ! Y lg ]????????? | | # %=[ ]????????? | | # ! %! @ ]????????? | | # ^ ############ a ####### ????????? | | # #??????????###+###?????????????????????? | | # =!!#???????????? ???????????????????????? | | # =!!#??????????? ???????????????????????? | | # ^ =!!#?????????? ??????????????????????? | | #?????????? ??????????????????????? | | ^ #????????? ?????????????????????? | | #???????? ?????????????????????? | | ###################????????????????????? | | # #????????????????????????? | | !/ # #????????????????????????? | | !/ #* """ """ ##???????????????????????? | | / %+ ! """"""""" #???????????????????????? | | #% "" " ##???????????????????????? | | % # ! %%%!#????????????????????????? | | ####### ######+######+#????????????????????????? | | ?????# ##### ###### #????????????????????????? | | ?????# #????????????????????????? | | ?????# T %#### #???????????????? | | ###### % ?????????????? | | ## ###+############# ?????????????? | | ######## %% #????????????? ????????????????? | | ########% #??????????????????????????????? | | # / [ #??????????????????????????????? | +----------------------------------------------------+ Best States ------------- Heat Dissipation 28 Energy Generation 12 Energy Capacity 265 Matter Stores 300 Matter Capacity 300 Sight Range 16 Terrain Scan Density 10 Armor Coverage 150 Evasion (%) 40 Recoil Reduction 2 Item Schematics ----------------- None Robot Schematics ------------------ None Fabricated ------------ Nothing Alien Tech Used ----------------- None Achievements -------------- None Challenges ------------ None Game ------ Seed SigixSubatomicSource Manual? 0 Play Time 00:30:23 Cumulative 5.1 hours Start 2019.11.13 @ 08:47:01 End 2019.11.13 @ 09:17:11 Sessions 1 Manual Loads 0 Difficulty Rogue Special Mode None Game No. 16 Rogue 16 Adventurer 0 Explorer 0 Win Type - Total 0 Types 0/0/0/0/0/0/0 Lore% 1 Gallery% 7 Achievement% 3 Wizard Run 0 Options --------- ASCII 1 Keyboard 1 Movement Vi Keybinds 0 Fullscreen 2 Font 24/Proggy Map View 76x56 Tactical HUD 1 Map Filters NONE Filters NONE Steam 1 RUN: 5b6ea862-2b1e-453d-8a1a-2be4d20a5c80